Cogmind - Beta 14 @@@ ROGUE MODE // 2024.09.07 @ 20:12:00 Player: Helstads_dog Result: Destroyed by G-47 Trooper with Particle Gun Performance ------------- Evolutions (3) 1500 Regions Visited (11) 2200 Robots Destroyed (164) 820 Value Destroyed (5669) 5669 Prototype IDs (35) 700 Alien Tech Used (0) 0 Bonus (3305) 3305 TOTAL SCORE: 14194 Bonus ------- High Alert Combat Kills 900 Follower Combat Kills 234 Entered Garrisons 600 Used RIF Installer 1500 Aligned with FarCom 300 Friendly Fire -229 Cogmind --------- Core Integrity 0/700 Matter 32/300 Energy 100/100 System Corruption 2% Temperature Cool (9) Movement Core (700) Ox13 Location -7/Garrison Parts ------- > --- POWER (1) -------- (None) > --- PROPULSION (3) --- (None) > --- UTILITY (6) ------ Improved Heat Sink High-capacity Storage Unit Improved Signal Interpreter > --- WEAPON (3) ------- (None) > --- INVENTORY (20) --- Light Treads Armored Wheel Centrium Wheel Improved Heat Sink Authchip [R/Combat] Authchip [R/Combat] Heavy Assault Cannon Gauss Cannon Hypervelocity Mass Driver Micro-nuke Launcher Remote Datajack Plasma Cutter Peak State ------------ > --- POWER ------------ Improved Deuterium Engine > --- PROPULSION ------- Armored Treads Heavy Siege Treads > --- UTILITY ---------- Improved Cooling System High-capacity Storage Unit Improved Signal Interpreter Improved Targeting Computer Layered Light Armor Plating Improved Force Field > --- WEAPON ----------- Cooled Pulse Rifle Enhanced Autogun Gauss Cannon > --- INVENTORY -------- Nuclear Core Light Treads Wheel Armored Wheel Improved Heat Sink Improved Heat Sink Layered Light Armor Plating Authchip [R/Combat] Authchip [R/Combat] Splice Drone Bay Heavy EM Shotgun Lightning Gun Heavy Assault Cannon Micro-nuke Launcher Remote Datajack Plasma Cutter Katana [Rating: 61] Favorites ----------- Power Heavy Ion Engine Engine Heavy Ion Engine Power Core Nuclear Core Propulsion Light Treads Treads Light Treads Leg Aluminum Leg Wheel Wheel Utility Large Storage Unit Device Improved Cooling System Storage Large Storage Unit Processor Improved Targeting Computer Hackware Authchip [R/Combat] Protection Hardened Heavy Armor Plating Weapon Enhanced Autogun Energy Gun Particle Gun Energy Cannon Heavy Particle Cannon Ballistic Gun Enhanced Autogun Ballistic Cannon Flak Cannon Special Weapon Plasma Cutter Impact Weapon Hammer Slashing Weapon Katana Build | -11 -10 -9 -9 -9 -8 -8 -8 -8 -8 -7 -7 ------- Run | Yrd Mat Mat Min Exi Min Mat Gar Sto Gar Fac Gar Slots Evolved 6 | . . 2 . . . 2 . . . 2 . Power . | . . . . . . . . . . . . Propulsion 1 | . . . . . . 1 . . . . . Utility 4 | . . 1 . . . 1 . . . 2 . Weapon 1 | . . 1 . . . . . . . . . Parts Attached 211 | . 20 35 15 6 9 26 14 . 26 45 15 Power 13 | . 2 5 . . . 2 . . 1 2 1 Engine 10 | . 2 5 . . . 2 . . . 1 . Core 3 | . . . . . . . . . 1 1 1 Reactor . | . . . . . . . . . . . . Propulsion 35 | . 6 7 3 . . 3 6 . 5 4 1 Treads 18 | . 4 4 1 . . 1 3 . 3 1 1 Leg . | . . . . . . . . . . . . Wheel 17 | . 2 3 2 . . 2 3 . 2 3 . Hover . | . . . . . . . . . . . . Flight . | . . . . . . . . . . . . Utility 74 | . 5 12 8 3 7 12 5 . 6 11 5 Device 40 | . 2 3 6 3 7 5 2 . 3 6 3 Storage 4 | . 1 1 . . . 1 . . . 1 . Processor 10 | . 1 2 . . . 3 1 . . 3 . Hackware 1 | . . . . . . . . . 1 . . Protection 19 | . 1 6 2 . . 3 2 . 2 1 2 Artifact . | . . . . . . . . . . . . Weapon 89 | . 7 11 4 3 2 9 3 . 14 28 8 Energy Gun 25 | . 2 1 1 1 2 1 1 . 5 7 4 Energy Cannon 13 | . 1 1 . . . . 1 . 2 8 . Ballistic Gun 33 | . 4 8 3 2 . 6 . . 1 7 2 Ballistic Cannon 10 | . . . . . . . 1 . 3 4 2 Launcher . | . . . . . . . . . . . . Special Weapon 4 | . . . . . . 1 . . 1 2 . Impact Weapon 2 | . . 1 . . . 1 . . . . . Slashing Weapon 2 | . . . . . . . . . 2 . . Piercing Weapon . | . . . . . . . . . . . . Special Melee Weapon . | . . . . . . . . . . . . Unidentified Prototypes 6 | . . 1 1 . . 1 . . . 3 . Parts Lost 40 | . 3 3 8 . . 2 2 . 5 2 15 Power 5 | . 1 1 . . . . . . 1 . 2 Propulsion 12 | . 2 1 2 . . 1 1 . 2 1 2 Utility 13 | . . 1 3 . . 1 1 . 1 . 6 Weapon 10 | . . . 3 . . . . . 1 1 5 Highest Loss Streak 14 | . 3 1 6 . . 1 1 . 1 1 14 To Critical Strikes . | . . . . . . . . . . . . Average Slot Usage (%) 92 | . 89 99 97 64 100 98 91 . 89 91 80 Engine 7 | . 14 10 11 11 11 9 9 . 1 1 5 Core 2 | . . . . . . . . . 7 5 . Treads 12 | . 20 11 11 11 11 9 15 . 14 7 9 Wheel 11 | . 3 10 10 11 11 17 11 . 12 14 6 Device 10 | . 1 4 11 18 22 13 7 . 9 11 9 Storage 10 | . 14 11 11 11 11 9 9 . 9 7 7 Processor 1 | . . . . . . 4 1 . . 8 14 Protection 8 | . 3 17 8 . . 7 10 . 8 8 5 Energy Gun 5 | . 11 . . . 18 9 . . 6 3 4 Energy Cannon 3 | . 2 6 . . . . 8 . 2 10 3 Ballistic Gun 14 | . 13 26 32 1 14 17 13 . 9 6 5 Ballistic Cannon 2 | . . . . . . . 4 . 8 . 3 Peak Build Rating 61 | . 9 19 24 22 30 33 35 35 36 48 61 Average Rating 26 | . 6 14 20 15 27 28 32 35 34 44 46 On Entrance 23 | 6 6 8 19 17 19 26 26 35 35 36 44 Naked Turns . | . . . . . . . . . . . . Heaviest Build 93 | 12 37 42 48 38 47 62 81 81 84 93 87 Greatest Support 90 | 20 40 10 20 10 10 20 60 22 24 24 90 Greatest Overweight (x) 7 | . 3 4 4 3 4 3 7 3 6 7 3 Average Overweight (x) 3 | . . 3 3 2 3 1 3 3 4 3 2 Largest Inventory Capacity 20 | . 15 15 15 15 15 20 20 20 20 20 20 Average Capacity 17 | . 14 15 15 15 15 15 20 20 20 20 20 Most Carried 20 | . 15 15 15 15 15 15 16 16 20 20 20 Average Carried 15 | . 10 14 14 14 14 13 15 16 18 19 17 Final Capacity 20 | 8 15 15 15 15 15 20 20 20 20 20 20 Final Carried 20 | 6 15 15 10 13 15 15 16 16 20 19 13 Class Distribution -------------------- 45% | Scavenger-Skirmisher 15% | Mutant 15% | Tank 11% | Skirmisher 10% | Scavenger-Tank Dominant Class ---------------- Mutant | -10/Materials Tank | -9/Materials Tank | -9/Mines Mutant | -9/Exiles Scavenger-Skirmisher | -8/Mines Scavenger-Skirmisher | -8/Materials Skirmisher | -8/Garrison Skirmisher | -8/Storage Scavenger-Skirmisher | -8/Garrison Scavenger-Skirmisher | -7/Factory Scavenger-Skirmisher | -7/Garrison Resources | -11 -10 -9 -9 -9 -8 -8 -8 -8 -8 -7 -7 ----------- Run | Yrd Mat Mat Min Exi Min Mat Gar Sto Gar Fac Gar Matter Collected 4867 | 197 521 813 220 40 274 551 356 . 1218 619 58 Remotely . | . . . . . . . . . . . . Salvage Created 6568 | . 715 1369 91 . 492 552 450 . 1094 1419 386 Parts 375 | . 60 103 3 . 22 30 29 . 54 59 15 Haulers Intercepted . | . . . . . . . . . . . . Recyclers Shooed 1 | . . . . . . . . . . 1 . Parts Field Recycled 28 | . 28 . . . . . . . . . . Retrieved Matter 125 | . 125 . . . . . . . . . . Parts Self-Destructed . | . . . . . . . . . . . . Prevented . | . . . . . . . . . . . . Kills | -11 -10 -9 -9 -9 -8 -8 -8 -8 -8 -7 -7 ------- Run | Yrd Mat Mat Min Exi Min Mat Gar Sto Gar Fac Gar Combat Hostiles Destroyed 139 | . 19 27 6 . 9 11 10 . 29 21 7 Guns 86 | . 12 20 6 . 8 11 6 . 15 2 6 Cannons 42 | . 3 7 . . . . 4 . 14 14 . AOE 5 | . 4 . . . 1 . . . . . . Classes Destroyed 18 | . 6 3 2 . . . 1 . 2 2 2 Worker 7 | . 3 1 . . 2 . . . . 1 . Builder 2 | . 1 1 . . . . . . . . . Recycler 5 | . . 2 . . 1 . . . . 2 . Operator 2 | . 1 1 . . . . . . . . . Watcher 12 | . 3 4 . . . 3 . . . 1 1 Swarmer 32 | . 9 7 . . 2 1 1 . 12 . . Grunt 60 | . 10 9 1 . 7 6 3 . 9 12 3 Brawler 3 | . . . . . . . . . 1 2 . Duelist 5 | . . 1 . . . . 1 . 2 1 . Protector 1 | . . . . . . . . . . 1 . Sentry 23 | . . 10 . . . 4 4 . 2 2 1 Demolisher 2 | . . . 2 . . . . . . . . Specialist 1 | . . . . . . . 1 . . . . Hunter 1 | . . . . . . . . . . . 1 Programmer 5 | . . . . . . . . . 3 2 . Heavy 2 | . . . . . . . . . . 1 1 Behemoth 1 | . . . . . . . . . . . 1 Assembled 4 | . . . 4 . . . . . . . . Best Kill Streak 10 | . 10 5 4 . 3 3 3 . 10 7 4 Combat Bots Only 10 | . 6 4 4 . 3 3 3 . 10 7 4 Max Kills in Single Turn 4 | . 4 3 2 . 1 1 1 . 2 2 2 Gunslinging 1 | . . 1 1 . . . . . . . 1 Exploded 2 | . 2 . . . 1 . . . . . . Melee . | . . . . . . . . . . . . Uniques/NPCs Destroyed . | . . . . . . . . . . . . Combat | -11 -10 -9 -9 -9 -8 -8 -8 -8 -8 -7 -7 -------- Run | Yrd Mat Mat Min Exi Min Mat Gar Sto Gar Fac Gar Hostile Shots Fired 851 | . 61 96 44 . 7 43 26 . 125 127 322 Missed 228 | . 17 21 6 . 1 8 10 . 41 59 65 Damage Taken 9457 | . 472 1036 1055 . 107 528 271 . 1110 1064 3814 Core 1150 | . 49 120 143 . . 47 28 . 62 71 630 Absorbed by Shields 231 | . . 65 71 . . . . . . . 95 Reduced by Siege Mode 504 | . . . . . . . . . . . 504 Regen/Repaired (Parts) 21 | . . 21 . . . . . . . . . Core Remaining (%) 72 | 100 80 . . . 34 . . . 75 . . Volleys Fired 412 | . 37 69 18 . 21 50 31 . 78 61 47 Largest 3 | . 2 3 3 . 3 3 3 . 3 3 3 Hottest 180 | . 80 106 69 . 157 119 144 . 144 180 145 Shots Fired 1057 | . 74 204 50 . 64 117 90 . 205 166 87 Gun 728 | . 69 152 50 . 64 104 59 . 119 55 56 Cannon 310 | . 5 52 . . . . 31 . 83 108 31 Launcher . | . . . . . . . . . . . . Special 19 | . . . . . . 13 . . 3 3 . Kinetic 617 | . 37 152 50 . 31 74 59 . 136 36 42 Thermal 356 | . 5 52 . . 33 31 27 . 46 120 42 Explosive . | . . . . . . . . . . . . Electromagnetic 78 | . 32 . . . . 12 4 . 20 7 3 Robot Hit Streak 25 | . 9 25 4 . 11 16 9 . 12 16 16 Robot Miss Streak 18 | . 3 2 4 . 2 4 3 . 18 2 2 Penetration Max . | . . . . . . . . . . . . Secondary Targets 8 | . 2 1 3 . . 1 . . . . 1 Max Gunslinging Chain 2 | . 1 1 2 . . 1 . . . . 1 Shots Hit Robots 674 | . 44 144 30 . 40 70 33 . 131 114 68 Core Hits 316 | . 33 52 16 . 17 35 20 . 82 42 19 Critical Kills 3 | . . . . . . . . . . 3 . Critical Parts Destroyed 2 | . . . . . . . . . 2 . . Critical Strikes 20 | . 2 . . . 4 1 . . 5 6 2 Burn 9 | . . . . . 4 1 . . . 2 2 Meltdown 3 | . . . . . . . . . . 3 . Destroy 2 | . . . . . . . . . 2 . . Corrupt 5 | . 2 . . . . . . . 2 1 . Sever 1 | . . . . . . . . . 1 . . Melee Attacks 27 | . . 2 . . . 1 . . 24 . . Impact 3 | . . 2 . . . 1 . . . . . Slashing 24 | . . . . . . . . . 24 . . Piercing . | . . . . . . . . . . . . Sneak Attacks . | . . . . . . . . . . . . Combat Hostiles . | . . . . . . . . . . . . Follow-up Attacks . | . . . . . . . . . . . . Damage Inflicted 14636 | . 1032 2321 537 . 643 1470 780 . 3274 2719 1860 Guns 8099 | . 582 1485 537 . 643 1434 443 . 1125 783 1067 Cannons 5008 | . 56 836 . . . . 337 . 1050 1936 793 Explosions 545 | . 394 . . . . 36 . . 115 . . Melee 984 | . . . . . . . . . 984 . . Ramming . | . . . . . . . . . . . . Kinetic 6647 | . 262 1485 537 . 273 894 393 . 1506 362 935 Thermal 5979 | . 450 836 . . 370 323 337 . 576 2232 855 Explosive . | . . . . . . . . . . . . Electromagnetic 1026 | . 320 . . . . 253 50 . 208 125 70 Impact . | . . . . . . . . . . . . Slashing 984 | . . . . . . . . . 984 . . Piercing . | . . . . . . . . . . . . Highest Corruption 2 | . 2 1 1 1 1 . 1 1 2 2 2 Average Corruption 1 | . 2 1 1 1 1 . 1 1 1 1 2 Corruption Purged . | . . . . . . . . . . . . Corruption Blocked . | . . . . . . . . . . . . Effects 73 | . 3 . 9 6 14 . 10 . 20 5 6 Message Errors 19 | . 1 . 5 2 1 . 4 . 3 . 3 Matter Fused 19 | . 2 . . 2 4 . 1 . 4 3 3 Heat Flow Errors 8 | . . . 2 1 1 . 1 . 3 . . Energy Discharges 6 | . . . 1 1 1 . 1 . 2 . . Parts Rejected 1 | . . . . . . . . . . 1 . Parts Fused 3 | . . . 1 . . . . . 2 . . Data Loss (minor) 7 | . . . . . 1 . 1 . 5 . . Data Loss (major) 2 | . . . . . 2 . . . . . . Misfires 2 | . . . . . 2 . . . . . . Alerts 3 | . . . . . 1 . 1 . . 1 . Weapon Failures 3 | . . . . . 1 . 1 . 1 . . Overload Shots 17 | . . . . . . . . . . 6 11 Overflow Damage 194 | . 17 . . . . 14 7 . 77 . 79 Projectiles 91 | . . . . . . . 7 . 5 . 79 Explosions 31 | . 17 . . . . 14 . . . . . Melee 72 | . . . . . . . . . 72 . . Knockbacks 25 | . . . . . . . . . 25 . . Impact . | . . . . . . . . . . . . Kinetic 24 | . . . . . . . . . 24 . . Secondary 1 | . . . . . . . . . 1 . . Self-Inflicted Damage 16 | . 16 . . . . . . . . . . Shots 1 | . 1 . . . . . . . . . . Rammed . | . . . . . . . . . . . . Targets Rammed . | . . . . . . . . . . . . Kicked . | . . . . . . . . . . . . Crushed . | . . . . . . . . . . . . Highest Temperature 623 | . 93 317 314 165 104 173 294 . 623 228 286 Average Temperature 82 | . 36 83 111 85 27 42 84 . 118 70 120 Received Heat Transfer 3156 | . 189 354 109 . 36 297 90 . 423 273 1385 Effects 5 | . . 3 . . . . . . 2 . . Shutdowns 1 | . . . . . . . . . 1 . . Interference 3 | . . 3 . . . . . . . . . Matter Decay 1 | . . . . . . . . . 1 . . Siege Activations 1 | . . . . . . . . . . . 1 Total Turns 55 | . . . . . . . . . . . 55 Longest Duration 55 | . . . . . . . . . . . 55 Robots Corrupted . | . . . . . . . . . . . . Combat Hostiles . | . . . . . . . . . . . . Parts Fried 1 | . . . . . . . . . . 1 . Impact Corruptions . | . . . . . . . . . . . . Robots Melted 6 | . . . . . . . . . . 5 1 Combat Hostiles 6 | . . . . . . . . . . 5 1 Parts Melted 31 | . 3 3 . . 2 1 1 . 2 16 3 Heat Transferred 10637 | . 661 1739 . . 1110 679 481 . 1025 3430 1512 Parts Sabotaged . | . . . . . . . . . . . . Parts Stolen . | . . . . . . . . . . . . Parts Stripped . | . . . . . . . . . . . . Power Chain Reactions 8 | . 5 . . . . 1 . . 2 . . Alert | -11 -10 -9 -9 -9 -8 -8 -8 -8 -8 -7 -7 ------- Run | Yrd Mat Mat Min Exi Min Mat Gar Sto Gar Fac Gar Peak Influence 1429 | . 426 458 196 . 128 329 558 271 1429 1060 800 Initial 749 | . . 34 168 . . . 154 271 176 749 663 Average 413 | . 131 299 76 . 59 192 406 271 802 789 734 Maximum Alert Level 4 | . 2 2 . . . 1 2 1 4 3 3 Low Security (%) 33 | . 68 16 100 . 100 36 11 . 2 . . Level 1 22 | . 24 64 . . . 63 26 100 9 . . Level 2 20 | . 6 19 . . . . 62 . 30 16 17 Level 3 19 | . . . . . . . . . 37 83 82 Level 4 4 | . . . . . . . . . 20 . . Level 5 . | . . . . . . . . . . . . High Security . | . . . . . . . . . . . . Max Security . | . . . . . . . . . . . . Squads Dispatched 15 | . 6 2 . . . 2 . . . 5 . Investigation 7 | . 4 2 . . . 1 . . . . . Extermination 3 | . . . . . . . . . . 3 . Reinforcement 3 | . 2 . . . . . . . . 1 . Assault 1 | . . . . . . . . . . 1 . Garrison 1 | . . . . . . 1 . . . . . Intercept . | . . . . . . . . . . . . Searches Triggered . | . . . . . . . . . . . . Construction Impeded . | . . . . . . . . . . . . Haulers Reinforced . | . . . . . . . . . . . . Active Scanning Responses . | . . . . . . . . . . . . Cargo Convoy Interrupts . | . . . . . . . . . . . . Stealth | -11 -10 -9 -9 -9 -8 -8 -8 -8 -8 -7 -7 --------- Run | Yrd Mat Mat Min Exi Min Mat Gar Sto Gar Fac Gar Distress Signals 6 | . . 3 . . . 3 . . . . . Communications Jammed . | . . . . . . . . . . . . Distress Signals . | . . . . . . . . . . . . Times Spotted 196 | . 27 39 9 . 14 19 13 . 30 30 15 Peak Tracking Total 13 | . 5 6 9 . 3 3 4 . 5 10 13 Tactical Retreats 11 | . 1 2 2 . . . . . . 2 4 Traps | -11 -10 -9 -9 -9 -8 -8 -8 -8 -8 -7 -7 ------- Run | Yrd Mat Mat Min Exi Min Mat Gar Sto Gar Fac Gar Traps Triggered 26 | . 4 1 . . . 1 5 . 11 1 3 Indirectly . | . . . . . . . . . . . . Trap Hack Attempts . | . . . . . . . . . . . . Triggered . | . . . . . . . . . . . . Disarmed . | . . . . . . . . . . . . Reprogrammed . | . . . . . . . . . . . . Reused . | . . . . . . . . . . . . Traps Extracted . | . . . . . . . . . . . . Installed . | . . . . . . . . . . . . Triggered . | . . . . . . . . . . . . Machines | -11 -10 -9 -9 -9 -8 -8 -8 -8 -8 -7 -7 ---------- Run | Yrd Mat Mat Min Exi Min Mat Gar Sto Gar Fac Gar Machines Disabled 8 | . 2 . . . 2 . 2 . . 2 . Max in Single Turn 1 | . 1 . . . 1 . 1 . . 1 . Garrison Relay 1 | . . . . . . . 1 . . . . Machines Repaired . | . . . . . . . . . . . . Machines Dismantled . | . . . . . . . . . . . . Machines Sabotaged . | . . . . . . . . . . . . Overloaded Fab Kills . | . . . . . . . . . . . . Hacking | -11 -10 -9 -9 -9 -8 -8 -8 -8 -8 -7 -7 --------- Run | Yrd Mat Mat Min Exi Min Mat Gar Sto Gar Fac Gar Machines Accessed 44 | . 8 12 1 5 . 8 1 1 3 4 1 Terminals 25 | . 6 7 . . . 5 1 . 3 2 1 Fabricators . | . . . . . . . . . . . . Repair Stations 1 | . . 1 . . . . . . . . . Recycling Units 6 | . 2 2 . . . 1 . . . 1 . Scanalyzers 3 | . . 2 . . . 1 . . . . . Garrison Access 3 | . . . . . . 1 . 1 . 1 . Total Hacks 172 | . 34 44 1 50 . 28 1 1 6 6 1 Successful 119 | . 13 31 1 50 . 17 1 1 2 2 1 Failed 51 | . 20 12 . . . 11 . . 4 4 . Catastrophic 4 | . 2 . . . . . . . . 2 . Database Lockouts 2 | . 1 1 . . . . . . . . . Manual 43 | . 18 15 . 1 . 7 . . . 2 . Terminals 80 | . 28 25 . . . 16 1 . 6 3 1 Fabricators . | . . . . . . . . . . . . Repair Stations 2 | . . 2 . . . . . . . . . Recycling Units 11 | . 6 3 . . . 1 . . . 1 . Scanalyzers 23 | . . 14 . . . 9 . . . . . Garrison Access 5 | . . . . . . 2 . 1 . 2 . Terminal Hacks 81 | . 10 12 1 50 . 4 1 . 2 . 1 Record 49 | . . . . 49 . . . . . . . Robot Analysis 5 | . 3 1 . . . 1 . . . . . Prototype ID Bank 5 | . 1 3 . . . 1 . . . . . Open Door 1 | . . . 1 . . . . . . . . Branch Access Points 1 | . . 1 . . . . . . . . . Emergency Access Points 4 | . . 1 . . . . 1 . 1 . 1 Terminal Index 2 | . 1 1 . . . . . . . . . Recycling Unit Index 1 | . . . . . . 1 . . . . . Scanalyzer Index 2 | . 1 1 . . . . . . . . . Alert Level 2 | . . 2 . . . . . . . . . Unreport Threat 2 | . 1 1 . . . . . . . . . Locate Traps 3 | . 2 . . . . 1 . . . . . Dispatch Records 1 | . . 1 . . . . . . . . . Recall Reinforcements 1 | . 1 . . . . . . . . . . Patrol Navigation 1 | . . . . . . . . . 1 . . Derelict Proto ID Bank 1 | . . . . 1 . . . . . . . Fabricator Hacks . | . . . . . . . . . . . . Repair Station Hacks 2 | . . 2 . . . . . . . . . Scan Component 1 | . . 1 . . . . . . . . . Repair 1 | . . 1 . . . . . . . . . Recycling Unit Hacks 3 | . 1 1 . . . 1 . . . . . Report Inventory 3 | . 1 1 . . . 1 . . . . . Scanalyzer 20 | . . 12 . . . 8 . . . . . Insert Component 9 | . . 5 . . . 4 . . . . . Analyze 11 | . . 7 . . . 4 . . . . . Garrison Access Hacks 4 | . . . . . . 1 . 1 . 2 . Unlock Access 3 | . . . . . . 1 . 1 . 1 . Coupler Status 1 | . . . . . . . . . . 1 . Unauthorized Hacks 9 | . 2 4 . . . 3 . . . . . Terminals 7 | . 2 2 . . . 3 . . . . . Botnet 7 | . 2 2 . . . 3 . . . . . Fabricators . | . . . . . . . . . . . . Repair Stations . | . . . . . . . . . . . . Recycling Units 2 | . . 2 . . . . . . . . . Tunnel 2 | . . 2 . . . . . . . . . Scanalyzers . | . . . . . . . . . . . . Garrison Access . | . . . . . . . . . . . . Data Cores Recovered 1 | . . 1 . . . . . . . . . Used . | . . . . . . . . . . . . Hacking Detections 34 | . 8 10 . . . 8 1 1 2 4 . Full Trace Events 5 | . 4 . . . . . . . 1 . . Feedback Events . | . . . . . . . . . . . . Feedback Blocked . | . . . . . . . . . . . . Robot Schematics Acquired . | . . . . . . . . . . . . Robots Built . | . . . . . . . . . . . . Authchips . | . . . . . . . . . . . . Time . | . . . . . . . . . . . . Total Robot Build Rating . | . . . . . . . . . . . . Part Schematics Acquired 9 | . . 5 . . . 4 . . . . . Parts Built . | . . . . . . . . . . . . Authchips . | . . . . . . . . . . . . Time . | . . . . . . . . . . . . Total Part Build Rating . | . . . . . . . . . . . . Parts Repaired 1 | . . 1 . . . . . . . . . Time 32 | . . 32 . . . . . . . . . Parts Recycled . | . . . . . . . . . . . . Recycled Matter . | . . . . . . . . . . . . Retrieved Matter . | . . . . . . . . . . . . Retrieved Components . | . . . . . . . . . . . . Parts Scanalyzed 9 | . . 5 . . . 4 . . . . . Part Schematics Acquired 9 | . . 5 . . . 4 . . . . . Parts Damaged . | . . . . . . . . . . . . Bothacking | -11 -10 -9 -9 -9 -8 -8 -8 -8 -8 -7 -7 ------------ Run | Yrd Mat Mat Min Exi Min Mat Gar Sto Gar Fac Gar Used RIF Installer 3 | . . . . . . . 1 . 1 . 1 Watcher Feeds 1 | . . . . . . . . . . . 1 Patrol Navigation 1 | . . . . . . . . . 1 . . Robots Hacked 3 | . . . . . . . . . . 3 . Non-combat 3 | . . . . . . . . . . 3 . Combat . | . . . . . . . . . . . . Robot Hacks Applied 3 | . . . . . . . . . . 3 . parse_system 2 | . . . . . . . . . . 2 . find_recycling 1 | . . . . . . . . . . 1 . Relay Couplers Released 3 | . . . . . . . 3 . . . . Machine Destruction 3 | . . . . . . . 3 . . . . Fabnet Peak Effective % . | . . . . . . . . . . . . Robots Rewired 3 | . . . . . . . . . 3 . . Allies Hacked . | . . . . . . . . . . . . Hacks Repelled . | . . . . . . . . . . . . Allies | -11 -10 -9 -9 -9 -8 -8 -8 -8 -8 -7 -7 -------- Run | Yrd Mat Mat Min Exi Min Mat Gar Sto Gar Fac Gar Total Allies 11 | . . . 4 . 3 . . . 3 1 . Largest Group 4 | . . . 4 . 1 . . . 3 1 . Highest-Rated Group 79 | . . . 71 . 16 . . . 79 16 . Highest-Rated Ally 39 | . . . 31 . 16 . . . 39 16 . Total Orders 10 | . . . 5 1 1 . . . 1 2 . ROAM 1 | . . . . . . . . . 1 . . EXPLORE 6 | . . . 3 . 1 . . . . 2 . RETURN 3 | . . . 2 1 . . . . . . . Ally Attacks 74 | . . . 16 . 39 10 . . . 6 3 Total Damage 976 | . . . 147 . 251 531 . . . 25 22 Kills 13 | . . . 2 . 3 6 . . . 2 . Allies Corrupted 1 | . . . 1 . . . . . . . . Allies Melted . | . . . . . . . . . . . . Turrets Deployed 3 | . . . . . . 3 . . . . . Intel | -11 -10 -9 -9 -9 -8 -8 -8 -8 -8 -7 -7 ------- Run | Yrd Mat Mat Min Exi Min Mat Gar Sto Gar Fac Gar Robot Analysis Total 5 | . 3 1 . . . 1 . . . . . Derelict Logs Recovered 1 | . . . 1 . . . . . . . . Drone Launches 52 | . . . 12 1 30 . . . . 6 3 Drone Recoveries 51 | . . . 12 1 30 . . . . 6 2 Exploration | -11 -10 -9 -9 -9 -8 -8 -8 -8 -8 -7 -7 ------------- Run | Yrd Mat Mat Min Exi Min Mat Gar Sto Gar Fac Gar Turns Passed 12569 | . 1255 1775 904 694 1350 926 1556 3 2431 1290 385 Spaces Moved 7351 | 1 732 980 542 563 865 615 886 2 1279 744 142 Core . | . . . . . . . . . . . . Treads 703 | . 506 . 2 . . . 149 . . . 46 Legs 6 | 1 5 . . . . . . . . . . Wheels 6642 | . 221 980 540 563 865 615 737 2 1279 744 96 Hover . | . . . . . . . . . . . . Flight . | . . . . . . . . . . . . Fastest Speed 95 | 120 115 125 125 110 125 95 110 130 130 130 130 Average Speed 138 | 120 146 128 138 120 134 107 158 130 156 135 144 Slowest Speed 320 | 120 240 140 320 125 140 125 240 130 180 195 175 Overloaded Moves . | . . . . . . . . . . . . Propulsion Burnouts . | . . . . . . . . . . . . Robots Hopped 3 | . . . . . . 3 . . . . . Cave-ins Triggered . | . . . . . . . . . . . . Exploration Rate (%) 61 | 2 99 79 98 92 101 42 84 3 97 21 21 Regions Visited 11 Branch Regions 4 Pre-discovered Areas 3 | . . 2 . 1 . . . . . . . Known Exits Taken 5 | . . 1 . . 1 1 . 1 . 1 . Unknown Exits Taken 4 | 1 1 . 1 1 . . . . . . . Scrap Searched 2 | . . . 1 . 1 . . . . . . Spaces Dug 2 | . . 1 . . . 1 . . . . . Terrain Destroyed 29 | . 10 1 . . 2 9 . . 3 1 3 Melee 2 | . . 1 . . . 1 . . . . . Projectile 4 | . . . . . . . . . . 1 3 AOE 23 | . 10 . . . 2 8 . . 3 . . Terrain Rammed . | . . . . . . . . . . . . Walls Destroyed . | . . . . . . . . . . . . Machines Disabled . | . . . . . . . . . . . . Actions | -11 -10 -9 -9 -9 -8 -8 -8 -8 -8 -7 -7 --------- Run | Yrd Mat Mat Min Exi Min Mat Gar Sto Gar Fac Gar Total 8901 | . 837 1355 654 581 1008 781 981 2 1539 912 251 Wait 561 | . 17 203 68 3 102 60 28 . 22 24 34 Move 7337 | . 731 979 541 562 864 609 885 2 1278 744 142 Hop 3 | . . . . . . 3 . . . . . Pick Up 118 | . 19 32 6 3 5 13 6 . 18 13 3 Fast Attach 40 | . 10 1 2 2 2 6 4 . 3 8 2 Attach 75 | . 5 15 10 4 1 8 3 . 9 9 11 Detach 27 | . 2 2 1 5 . 4 2 . 3 3 5 Swap 96 | . 5 19 3 . 6 12 7 . 14 28 2 Drop 117 | . 11 33 5 2 7 15 7 . 10 22 5 Fire 412 | . 37 69 18 . 21 50 31 . 78 61 47 Melee 27 | . . 2 . . . 1 . . 24 . . Ram . | . . . . . . . . . . . . Kick . | . . . . . . . . . . . . Crush . | . . . . . . . . . . . . Escape Stasis 88 | . . . . . . . 8 . 80 . . Rewire . | . . . . . . . . . . . . Trap . | . . . . . . . . . . . . Miscellaneous . | . . . . . . . . . . . . Route ------- -11/Scrapyard -10/Materials (discovered 6 exits: *Mat x3 / *Min x2 / [*Sub]) -9/Materials (discovered 4 exits: *Mat x2 / *Min x2) -9/Mines (discovered 3 exits: *Mat x2 / *Exi) -9/Exiles (discovered 2 exits: [*Min x2]) -8/Mines (discovered 2 exits: *Mat x2) -8/Materials (discovered 4 exits: *Fac x2 / *Sto / Gar) -8/Garrison (discovered 2 exits: *Sto x2) -8/Storage -8/Garrison (discovered 3 exits: *Fac x3) -7/Factory (discovered 5 exits: *Fac x2 / *Low x2 / Gar) -7/Garrison History --------- Turn | Location | Event 1 | -11/Scrapyard | Discovered new exit (range 0) 1 | -11/Scrapyard | Entered Materials 156 | -10/Materials | Discovered new exit (range 15) 302 | -10/Materials | Build established: Mutant 343 | -10/Materials | Lost 3 parts (1p2n) 472 | -10/Materials | Identified exit to Mines 549 | -10/Materials | Discovered new exit (range 15) 606 | -10/Materials | Central database locked down 810 | -10/Materials | Discovered exit to Mines (range 12) 938 | -10/Materials | Discovered new exit (range 16) 1078 | -10/Materials | Discovered new exit (range 8) 1224 | -10/Materials | Discovered new exit (range 8) 1256 | -10/Materials | Entered another Materials area 1256 | -9/Materials | Evolved 2 slots: Utility x1, Weapon x1 1433 | -9/Materials | Discovered new exit (range 7) 1539 | -9/Materials | Identified exit to Mines 1561 | -9/Materials | Build established: Tank 1751 | -9/Materials | Central database locked down 1951 | -9/Materials | Discovered new exit (range 16) 2029 | -9/Materials | Identified exit to Materials 2063 | -9/Materials | Build established: Scavenger-Tank 2639 | -9/Materials | Repaired Shield Generator 2797 | -9/Materials | Build established: Tank 2816 | -9/Materials | Discovered exit to Materials (range 16) 3031 | -9/Materials | Entered Mines 3061 | -9/Mines | Assisted by bots powering up and referring to "LRC-V3" 3092 | -9/Mines | Received a Mining Laser from a helpful Derelict 3265 | -9/Mines | Discovered exit to Materials (range 14) 3276 | -9/Mines | Found the Drone Emporium 3286 | -9/Mines | Found Prototype Device 3286 | -9/Mines | Identified Splice Drone Bay 3400 | -9/Mines | Deemed a non-threat by the Exiles lab entrance 3400 | -9/Mines | Discovered new exit (range 5) 3440 | -9/Mines | Assembled infested the area 3496 | -9/Mines | Lost 3 allies 3510 | -9/Mines | Met 8R-AWN 3757 | -9/Mines | Core integrity fell below 50% 3803 | -9/Mines | Lost 6 parts (1n2u3w) 3877 | -9/Mines | Discovered exit to Materials (range 40) 3935 | -9/Mines | Entered Exiles 3971 | -9/Exiles | Welcomed by 8R-AWN 3988 | -9/Exiles | Met EX-HEX 4067 | -9/Exiles | Met EX-BIN 4080 | -9/Exiles | Aligned with FarCom system 4081 | -9/Exiles | Given EX-Vault access code 4139 | -9/Exiles | Opened EX-Vault 4145 | -9/Exiles | Found Supersonic Drone Bay 4158 | -9/Exiles | Found Deploy-a-Sentry 4161 | -9/Exiles | Found Deploy-a-Sentry 4163 | -9/Exiles | Found Deploy-a-Sentry 4189 | -9/Exiles | Warned to stay clear of 0b10 Research branches 4225 | -9/Exiles | Met EX-DEC 4228 | -9/Exiles | Build established: Mutant 4230 | -9/Exiles | Learned location of Zion (-7) 4301 | -9/Exiles | Discovered new exit (range 12) 4400 | -9/Exiles | Visited The Gauntlet 4554 | -9/Exiles | Learned about 8R-AWN's background 4611 | -9/Exiles | Discovered new exit (range 15) 4629 | -9/Exiles | Left Exiles lab with Deploy-a-Sentry 4629 | -9/Exiles | Entered Mines 4837 | -8/Mines | Discovered exit to Materials (range 19) 4902 | -8/Mines | Build established: Scavenger-Skirmisher 4990 | -8/Mines | Discovered exit to Materials (range 15) 5979 | -8/Mines | Entered Materials 5979 | -8/Materials | Evolved 2 slots: Propulsion x1, Utility x1 5980 | -8/Materials | Identified exit to Factory 5999 | -8/Materials | DAS Turret deployed 6038 | -8/Materials | DAS Turret deployed 6071 | -8/Materials | DAS Turret deployed 6398 | -8/Materials | Discovered new exit (range 9) 6435 | -8/Materials | Identified exit to Storage 6757 | -8/Materials | Garrison activated, responded to threat 6894 | -8/Materials | Discovered exit to Factory (range 5) 6905 | -8/Materials | Identified exit to Garrison 6905 | -8/Materials | Entered Garrison 6905 | -8/Garrison | Warlord forces raided the area 6949 | -8/Garrison | Build established: Scavenger-Tank 7009 | -8/Garrison | Triggered checkpoint 7067 | -8/Garrison | Triggered checkpoint 7085 | -8/Garrison | Triggered checkpoint 7107 | -8/Garrison | Triggered checkpoint 7139 | -8/Garrison | Triggered checkpoint 7352 | -8/Garrison | Discovered exit to Storage (range 13) 7360 | -8/Garrison | Warlord forces retreated 7459 | -8/Garrison | Installed Relay Interface Framework 7479 | -8/Garrison | Triggered checkpoint 7482 | -8/Garrison | Garrison Relay disabled 7664 | -8/Garrison | Build established: Scavenger-Skirmisher 7970 | -8/Garrison | Build established: Skirmisher 8127 | -8/Garrison | Discovered exit to Storage (range 15) 8461 | -8/Garrison | Entered Storage 8464 | -8/Storage | Identified exit to Garrison 8464 | -8/Storage | Entered Garrison 8518 | -8/Garrison | Triggered checkpoint 8746 | -8/Garrison | Triggered checkpoint 8766 | -8/Garrison | Triggered checkpoint 8813 | -8/Garrison | Destroyed 10 combat bots 8824 | -8/Garrison | Build established: Scavenger-Skirmisher 8854 | -8/Garrison | Triggered checkpoint 9018 | -8/Garrison | Triggered checkpoint 9052 | -8/Garrison | Discovered exit to Factory (range 10) 9155 | -8/Garrison | Expanded RIF knowledge: Patrol Navigation 9312 | -8/Garrison | Triggered checkpoint 9514 | -8/Garrison | Triggered checkpoint 9652 | -8/Garrison | Triggered checkpoint 9669 | -8/Garrison | Discovered exit to Factory (range 15) 10063 | -8/Garrison | Discovered exit to Factory (range 15) 10895 | -8/Garrison | Entered Factory 10895 | -7/Factory | Evolved 2 slots: Utility x2 10908 | -7/Factory | Discovered new exit (range 15) 11206 | -7/Factory | Discovered new exit (range 11) 11627 | -7/Factory | Discovered new exit (range 13) 11631 | -7/Factory | Build established: Skirmisher 11666 | -7/Factory | Discovered new exit (range 13) 11695 | -7/Factory | First assault squad dispatched 11852 | -7/Factory | Destroyed 7 combat bots 11943 | -7/Factory | Identified exit to Lower Caves 12129 | -7/Factory | Identified exit to Factory 12185 | -7/Factory | Identified exit to Garrison 12185 | -7/Factory | Entered Garrison 12218 | -7/Garrison | Expanded RIF knowledge: Watcher Feeds 12247 | -7/Garrison | Build established: Scavenger-Skirmisher 12314 | -7/Garrison | Spotted B-75 Beast 12340 | -7/Garrison | Destroyed B-75 Beast 12403 | -7/Garrison | Heavy support dispatched to Factory 12542 | -7/Garrison | Core integrity fell below 50% 12559 | -7/Garrison | Core integrity fell below 20% 12570 | -7/Garrison | Destroyed by G-47 Trooper with Particle Gun Last Messages --------------- 12519_ Destroyed Imp. Heat Sink. 12519_ Y-54 Guardian suffers critical hit (Burn). 12520_ Splice Drone Bay destroyed. 12525_ Hvy. Siege Treads destroyed. 12525_ Y-54 Guardian destroyed. 12526_ G-50 Soldier heat damages Hvy. Laser. 12526_ G-50 Soldier overheating. 12527_ Destroyed Carbon-fiber Leg. 12528_ G-50 Soldier overheating. 12533_ Broken Lgt. Angular Momentum Engine melted. 12533_ G-50 Soldier destroyed. 12535_ System corrupted: Matter fused (-8). 12535_ Destroyed Aluminum Leg. 12539_ Enh. Autogun destroyed. 12542_ Nuclear Core destroyed. 12543_ Cld. Pulse Rifle destroyed. 12544_ Imp. Targeting Computer destroyed. 12553_ G-47 Trooper overheating. 12557_ G-47 Trooper heat damages core (-10). 12560_ Critical hit (Burn: +37). Map ----- +----------------------------------------------------+ | ????????????????????### ###?????????????????? | | ??????????????????????# #???????????????????? | | ??????????????????????## ####?????????????+???+?? | | ???????????????????????# #??????????????????????? | | ?????????????????####### ##?????????????????????? | | ?????????????????# ## "#?????????????????????? | | ?????????????????# ## ##?????????????????????? | | ?+???????????????# ## #??????????????????????? | | ?????????????????### ## #??????????????????????? | | ???????????????????# ##% #??????????????????????? | | ???????????????????# ## *#???????????????+??????? | | ???????????????????# ##= #??????????????????????? | | ??????##+########### ##! ##?????????????????????? | | ????# ##"""###???????????????????? | | ??????##+#####"##### +????????????+??????? | | ??????#] #???# #???# #???????????????????? | | ??????## #???# #???##"##### ##?????+?p??????????? | | ??????## ##### #????# #???# T#??????????????????? | | ??????+ =!#????# #???# ##??????????????????? | | ??????########%#????# #???# #???????????????????? | | ????????????##=##???# #???# %#???????????????????? | | ????????????# #???# #???# #????+??????????????? | | ????????????#" "#???# #???#% #??? #?????????????? | | ????????????#" "#???# #??##[ ## ## #?????????? | | ????????????#" "#??##%####%% % % #????????? | | ????????????#"""#??#;%!%=@%%%! % =![ ???????? | | ????????????#####??#####=#%[g* g % ???????? | | ???????????????????????###%=%## ## #????????? | | ?????????????????????????# #??? #?????????????? | | ????????????????????????? ??????????????????? | | ????????????????????????? ?????????????????? | | ????????????????????????? ????????????????? | | ????????????????????????? ???????C???????? | | ?????????????????????????# ## ??????????????? | | ?????????????????????????? #? #?????????????? | | ?????????????????????????? ?? ?????????????? | | ?????????????????????????+ ?? ????????????? | | ?????????????????????????? ??? ????????+????? | | ??????????????????????????# #???????????????????? | | ??????????????????????????? #???bb??????????????? | | ??????????????????????????? ????????????????????? | | ??????????+?????+?????????+???????????????????+??+ | | ?????????????????????????????????????????????????? | | ???????????????????????????????????????+?????????? | | ?????????????????????????????????????????????????? | | ?????????????????????+???????????????????????????? | | ???????????+?????????????????????????????????????? | | ?????????????????????????????????????????????????? | | ?????????????????????+????????????????+??????????? | | ?????????????????????????????????????????????????? | +----------------------------------------------------+ Best States ------------- Heat Dissipation 77 Coolant Potential 50 Energy Generation 16 Energy Capacity 290 Matter Stores 490 Matter Capacity 500 Sight Range 20 Terrain Scan Range 16 Terrain Scan Density 10 Armor Coverage 750 Evasion (%) 41 Targeting Accuracy 6 Recoil Reduction 5 Authchip Count 2 Item Schematics ----------------- Signal Interpreter | -9/Materials | Scanalyzed Wheel | -9/Materials | Scanalyzed Hcp. Matter Pod | -9/Materials | Scanalyzed Lgt. Treads | -9/Materials | Scanalyzed Imp. Targeting Computer | -9/Materials | Scanalyzed Adv. Heat Sink | -8/Materials | Scanalyzed Disposable Heat Sink | -8/Materials | Scanalyzed Plasma Cutter | -8/Materials | Scanalyzed Imp. Signal Interpreter | -8/Materials | Scanalyzed Robot Schematics ------------------ None Fabricated ------------ Nothing Alien Tech Used ----------------- None Achievements -------------- Error 47 Infiltrator Challenges ------------ None Game ------ Seed IonElectrostormLog Manual? 0 Play Time 03:43:05 Cumulative 74.5 hours Start 2024.09.07 @ 15:21:31 End 2024.09.07 @ 20:12:00 Sessions 1 Manual Loads 0 Difficulty Rogue Special Mode None Game No. 42 Rogue 42 Adventurer 0 Explorer 0 Win Type - Total 0 Types 0/0/0/0/0/0/0/0/0 Lore% 26 Gallery% 28 Achievement% 33 Wizard Run 0 Options --------- Layout 0 ASCII 0 Keyboard 0 Movement Mouse Keybinds 0 Fullscreen 1 Font 16/SmallcapsGlow Map View 37x27 Zoom Use 79% Tactical HUD 1 Map Filters NONE Filters NONE Steam 1 RUN: 72d1ed7a-df89-4930-ad40-42458b7cb2de